fUSD/lending_fUSD_20250105
["ID","MTS","AMOUNT","RATE_DAILY","PERIOD"]
[347678788,1736051261965,-500.0,0.00010955,2]
[347678789,1736051261991,-869.58,0.00010955,2]
[347678790,1736051262015,-500.0,0.00010955,2]
[347678791,1736051262040,-500.0,0.00010955,2]
[347678792,1736051262066,-1069.16,0.00010955,2]
[347678793,1736051262091,-742.45,0.00010955,2]
[347678794,1736051262116,-500.0,0.00010955,2]
[347678795,1736051262140,-550.0,0.00011,2]
[347678796,1736051262165,-184.65,0.00011032,2]
[347678797,1736051262189,-500.0,0.00011227,2]
[347678798,1736051262214,-500.0,0.00011227,2]
[347678799,1736051262240,-1820.58,0.00011227,2]
[347678800,1736051262264,-562.23,0.00011227,2]
[347678801,1736051262289,-2054.34,0.00011227,2]
[347678802,1736051262315,-1370.28,0.00011227,2]
[347678803,1736051262340,-500.0,0.00011227,2]
[347678804,1736051262364,-1120.71,0.00011227,2]
[347678805,1736051262388,-500.0,0.00011227,2]
[347678806,1736051262412,-606.96,0.00011227,2]
[347678807,1736051262437,-1347.54,0.00011227,2]
[347678808,1736051262461,-500.0,0.00011227,2]
[347678809,1736051262484,-754.61,0.00011227,2]
[347678810,1736051262508,-500.0,0.00011227,2]
[347678811,1736051262533,-528.74,0.00011227,2]
[347678812,1736051262559,-1238.95,0.00011227,2]
[347678813,1736051262584,-547.29,0.00011227,2]
[347678814,1736051262608,-730.87,0.00011227,2]
[347678815,1736051262632,-1057.0,0.00011228,2]
[347678816,1736051262656,-500.0,0.00011228,2]
[347678817,1736051262679,-500.0,0.00011228,2]
[347678818,1736051262704,-500.0,0.00011228,2]
[347678819,1736051262728,-500.0,0.00011228,2]
[347678820,1736051262752,-488.88864083,0.00011228,2]
[347678821,1736051262775,-500.0,0.00011228,2]
[347678822,1736051262800,-500.0,0.00011228,2]
[347678823,1736051262824,-500.0,0.00011228,2]
[347678824,1736051262848,-500.0,0.00011228,2]
[347678825,1736051262874,-500.0,0.00011228,2]
[347678826,1736051262898,-500.0,0.00011228,2]
[347678827,1736051262922,-435.89,0.00011228,2]
[347678828,1736051262944,-500.0,0.00011228,2]
[347678829,1736051262969,-841.26,0.00011228,2]
[347678830,1736051262993,-841.26,0.00011228,2]
[347678831,1736051263016,-500.0,0.00011228,2]
[347678832,1736051263041,-1153.38,0.00011228,2]
[347678833,1736051263068,-321.18,0.00011228,2]
[347678834,1736051263094,-520.24,0.00011228,2]
[347678835,1736051263121,-500.0,0.00011228,2]
[347678836,1736051263148,-760.0,0.00011228,2]
[347678837,1736051263173,-500.0,0.00011228,2]
[347678838,1736051263200,-788.82,0.00011228,2]
[347678839,1736051263229,-500.0,0.00011228,2]
[347678840,1736051263258,-500.0,0.00011228,2]
[347678841,1736051263285,-500.0,0.00011228,2]
[347678842,1736051263315,-500.0,0.00011228,2]
[347678843,1736051263342,-1540.896891,0.00011228,2]
[347678844,1736051263367,-1540.896891,0.00011228,2]
[347678845,1736051263393,-156.453335,0.00011228,2]
[347678846,1736051263419,-500.0,0.00011228,2]
[347678847,1736051263445,-500.0,0.00011228,2]
[347678848,1736051263470,-156.573944,0.00011228,2]
[347678849,1736051263497,-500.0,0.00011228,2]
[347678850,1736051263523,-575.28,0.00011228,2]
[347678851,1736051263554,-500.0,0.00011228,2]
[347678852,1736051263580,-500.0,0.00011228,2]
[347678853,1736051263607,-500.0,0.00011228,2]
[347678854,1736051263634,-1863.827328,0.00011228,2]
[347678855,1736051263661,-1863.827328,0.00011228,2]
[347678856,1736051263688,-1500.71,0.00011228,2]
[347678857,1736051263716,-500.0,0.00011228,2]
[347678858,1736051263744,-500.0,0.00011228,2]
[347678859,1736051263772,-500.0,0.00011228,2]
[347678860,1736051263797,-500.0,0.00011228,2]
[347678861,1736051263822,-500.0,0.00011228,2]
[347678862,1736051263850,-500.0,0.00011228,2]
[347678863,1736051263875,-500.0,0.00011228,2]
[347678864,1736051263903,-595.26,0.00011228,2]
[347678865,1736051263927,-500.0,0.00011228,2]
[347678866,1736051263951,-500.0,0.00011228,2]
[347678867,1736051263976,-500.0,0.00011228,2]
[347678868,1736051264001,-500.0,0.00011228,2]
[347678869,1736051264025,-2093.2,0.00011228,2]
[347678870,1736051264200,-500.0,0.00011228,2]
[347678871,1736051264236,-500.0,0.00011228,2]
[347678872,1736051264262,-500.0,0.00011228,2]
[347678873,1736051264290,-240.13,0.00011228,2]
[347678874,1736051264320,-1060.83,0.00011228,2]
[347678875,1736051264344,-378.28563758,0.00011228,2]
[347678876,1736051264370,-500.0,0.00011228,2]
[347678877,1736051264395,-500.0,0.00011228,2]
[347678878,1736051264421,-1546.57,0.00011228,2]
[347678879,1736051264446,-922.36,0.00011228,2]
[347678880,1736051264472,-390.0,0.00011228,2]
[347678881,1736051264497,-500.0,0.00011228,2]
[347678882,1736051264522,-497.77,0.00011228,2]
[347678883,1736051264549,-5149.62,0.00011228,2]
[347678884,1736051264574,-500.0,0.00011228,2]
[347678885,1736051264600,-243.25,0.00011228,2]
[347678886,1736051264624,-500.0,0.00011228,2]
[347678887,1736051264648,-708.54,0.00011228,2]
[347678888,1736051264674,-500.0,0.00011228,2]
[347678889,1736051264699,-500.0,0.00011228,2]
[347678890,1736051264724,-500.0,0.00011228,2]
[347678891,1736051264748,-500.0,0.00011228,2]
[347678892,1736051264773,-500.0,0.00011228,2]
[347678893,1736051264798,-500.0,0.00011228,2]
[347678894,1736051264823,-500.0,0.00011228,2]
[347678895,1736051264847,-500.0,0.00011228,2]
[347678896,1736051264872,-500.0,0.00011228,2]
[347678897,1736051264896,-500.0,0.00011228,2]
[347678898,1736051264921,-500.0,0.00011228,2]
[347678899,1736051264945,-600.84,0.00011228,2]
[347678900,1736051264971,-1567.43,0.00011228,2]
[347678901,1736051264996,-500.0,0.00011228,2]
[347678902,1736051265021,-196.95,0.00011228,2]
[347678903,1736051265046,-316.09,0.00011228,2]
[347678904,1736051265071,-500.0,0.00011228,2]
[347678905,1736051265096,-500.0,0.00011228,2]
[347678906,1736051265121,-1272.72,0.00011228,2]
[347678907,1736051265145,-500.0,0.00011228,2]
[347678908,1736051265170,-500.0,0.00011228,2]
[347678909,1736051265195,-988.39,0.00011228,2]
[347678910,1736051265221,-500.0,0.00011228,2]
[347678911,1736051265251,-500.0,0.00011228,2]
[347678912,1736051265278,-1172.45,0.00011228,2]
[347678913,1736051265304,-407.95360067,0.00011228,2]
[347678914,1736051265330,-500.0,0.00011228,2]
[347678915,1736051265355,-500.0,0.00011228,2]
[347678916,1736051265380,-413.77,0.00011228,2]
[347678917,1736051265406,-500.0,0.00011228,2]
[347678918,1736051265430,-529.77,0.00011228,2]
[347678919,1736051265455,-890.96,0.00011228,2]
[347678920,1736051265480,-500.0,0.00011228,2]
[347678921,1736051265506,-917.41,0.00011228,2]
[347678922,1736051265531,-552.04,0.00011228,2]
[347678923,1736051265557,-1563.18,0.00011228,2]
[347678924,1736051265582,-500.0,0.00011229,2]
[347678925,1736051265608,-500.0,0.00011229,2]
[347678926,1736051265634,-1836.54,0.00011229,2]
[347678927,1736051265661,-500.0,0.00011229,2]
[347678928,1736051265688,-506.89,0.00011229,2]
[347678929,1736051265714,-1292.16,0.00011229,2]
[347678930,1736051265739,-500.0,0.00011229,2]
[347678931,1736051265765,-500.0,0.00011229,2]
[347678932,1736051265792,-500.0,0.00011229,2]
[347678933,1736051265817,-500.0,0.00011229,2]
[347678934,1736051265842,-500.0,0.00011229,2]
[347678935,1736051265866,-567.18,0.00011229,2]
[347678936,1736051265889,-500.0,0.00011229,2]
[347678937,1736051265914,-500.0,0.00011229,2]
[347678938,1736051265937,-500.0,0.00011229,2]
[347678939,1736051265961,-533.84,0.00011229,2]
[347678940,1736051265985,-742.63,0.00011229,2]
[347678941,1736051266009,-500.0,0.00011229,2]
[347678942,1736051266034,-500.0,0.00011229,2]
[347678943,1736051266059,-869.58,0.00011229,2]
[347678944,1736051266084,-500.0,0.00011229,2]
[347678945,1736051266109,-500.0,0.00011229,2]
[347678946,1736051266132,-500.0,0.00011229,2]
[347678947,1736051266156,-1069.16,0.00011229,2]
[347678948,1736051266181,-500.0,0.00011229,2]
[347678949,1736051266205,-742.45,0.00011229,2]
[347678950,1736051266233,-607.13,0.00011229,2]
[347678951,1736051266257,-500.0,0.00011229,2]
[347678952,1736051266282,-1489.33,0.00011229,2]
[347678953,1736051266307,-500.0,0.00011264,2]
[347678954,1736051266334,-150.0,0.00011295,2]
[347678955,1736051266359,-325.45,0.0001145,2]
[347678956,1736051266382,-500.0,0.00011501,2]
[347678957,1736051266407,-343.57080778,0.00011501,2]
[347678958,1736051266432,-1820.58,0.00011501,2]
[347678959,1736051266456,-562.23,0.00011501,2]
[347678960,1736051266482,-2054.34,0.00011501,2]
[347678961,1736051266508,-1370.28,0.00011501,2]
[347678962,1736051266533,-500.0,0.00011501,2]
[347678963,1736051266559,-1120.71,0.00011501,2]
[347678964,1736051266582,-500.0,0.00011501,2]
[347678965,1736051266608,-606.96,0.00011501,2]
[347678966,1736051266638,-1347.54,0.00011501,2]
[347678967,1736051266664,-500.0,0.00011501,2]
[347678968,1736051266688,-754.61,0.00011501,2]
[347678969,1736051266712,-500.0,0.00011501,2]
[347678970,1736051266737,-528.74,0.00011501,2]
[347678971,1736051266761,-1238.95,0.00011501,2]
[347678972,1736051266785,-547.29,0.00011501,2]
[347678973,1736051266809,-730.87,0.00011501,2]
[347678974,1736051266833,-333.74,0.00011502,2]
[347678975,1736051266859,-500.0,0.00011502,2]
[347678976,1736051266883,-500.0,0.00011502,2]
[347678977,1736051266906,-371.57,0.00011502,2]
[347678978,1736051266930,-500.0,0.00011502,2]
[347678979,1736051266954,-542.68,0.00011502,2]
[347678980,1736051266976,-515.65014651,0.00011502,2]
[347678981,1736051267000,-500.0,0.00011502,2]
[347678982,1736051267025,-500.0,0.00011502,2]
[347678983,1736051267049,-500.0,0.00011502,2]
[347678984,1736051267073,-500.0,0.00011502,2]
[347678985,1736051267099,-500.0,0.00011502,2]
[347678986,1736051267124,-500.0,0.00011502,2]
[347678987,1736051267149,-841.26,0.00011502,2]
[347678988,1736051267173,-841.26,0.00011502,2]
[347678989,1736051267197,-1153.38,0.00011502,2]
[347678990,1736051267221,-520.24,0.00011502,2]
[347678991,1736051267251,-315.32,0.00011502,2]
[347678992,1736051267278,-760.0,0.00011502,2]
[347678993,1736051267304,-500.0,0.00011502,2]
[347678994,1736051267328,-788.82,0.00011502,2]
[347678995,1736051267500,-500.0,0.00011502,2]
[347678996,1736051267525,-500.0,0.00011502,2]
[347678997,1736051267550,-500.0,0.00011502,2]
[347678998,1736051267578,-500.0,0.00011502,2]
[347678999,1736051267603,-500.0,0.00011502,2]
[347679000,1736051267628,-1540.896891,0.00011502,2]
[347679001,1736051267654,-1540.896891,0.00011502,2]
[347679002,1736051267678,-156.453335,0.00011502,2]
[347679003,1736051267703,-500.0,0.00011502,2]
[347679004,1736051267742,-500.0,0.00011502,2]
[347679005,1736051267772,-156.573944,0.00011502,2]
[347679006,1736051267800,-500.0,0.00011502,2]
[347679007,1736051267826,-500.0,0.00011502,2]
[347679008,1736051267853,-500.0,0.00011502,2]
[347679009,1736051267880,-500.0,0.00011502,2]
[347679010,1736051267904,-1863.827328,0.00011502,2]
[347679011,1736051267929,-1863.827328,0.00011502,2]
[347679012,1736051267953,-1500.71,0.00011502,2]
[347679013,1736051267979,-500.0,0.00011502,2]
[347679014,1736051268004,-365.35,0.00011502,2]
[347679015,1736051268028,-500.0,0.00011502,2]
[347679016,1736051268056,-500.0,0.00011502,2]
[347679017,1736051268083,-500.0,0.00011502,2]
[347679018,1736051268109,-500.0,0.00011502,2]
[347679019,1736051268134,-500.0,0.00011502,2]
[347679020,1736051268159,-500.0,0.00011502,2]
[347679021,1736051268185,-500.0,0.00011502,2]
[347679022,1736051268211,-186.82,0.00011502,2]
[347679023,1736051268239,-500.0,0.00011502,2]
[347679024,1736051268266,-500.0,0.00011502,2]
[347679025,1736051268292,-2093.2,0.00011502,2]
[347679026,1736051268319,-500.0,0.00011502,2]
[347679027,1736051268343,-500.0,0.00011502,2]
[347679028,1736051268374,-500.0,0.00011502,2]
[347679029,1736051268400,-1060.83,0.00011502,2]
[347679030,1736051268425,-500.0,0.00011502,2]
[347679031,1736051268450,-436.4,0.00011502,2]
[347679032,1736051268475,-500.0,0.00011502,2]
[347679033,1736051268500,-1546.57,0.00011502,2]
[347679034,1736051268526,-922.36,0.00011502,2]
[347679035,1736051268552,-500.0,0.00011502,2]
[347679036,1736051268578,-5149.62,0.00011502,2]
[347679037,1736051268604,-500.0,0.00011502,2]
[347679038,1736051268628,-500.0,0.00011502,2]
[347679039,1736051268653,-708.54,0.00011502,2]
[347679040,1736051268678,-500.0,0.00011502,2]
[347679041,1736051268702,-500.0,0.00011502,2]
[347679042,1736051268726,-500.0,0.00011502,2]
[347679043,1736051268750,-500.0,0.00011502,2]
[347679044,1736051268774,-500.0,0.00011502,2]
[347679045,1736051268799,-184.52,0.00011502,2]
[347679046,1736051268824,-500.0,0.00011502,2]
[347679047,1736051268848,-500.0,0.00011502,2]
[347679048,1736051268872,-500.0,0.00011502,2]
[347679049,1736051268897,-500.0,0.00011502,2]
[347679050,1736051268921,-500.0,0.00011502,2]
[347679051,1736051268944,-500.0,0.00011502,2]
[347679052,1736051268972,-600.84,0.00011502,2]
[347679053,1736051268997,-1567.43,0.00011502,2]
[347679054,1736051269288,-500.0,0.00011502,2]
[347679055,1736051269314,-500.0,0.00011502,2]
[347679056,1736051269339,-500.0,0.00011502,2]
[347679057,1736051269364,-1272.72,0.00011502,2]
[347679058,1736051269389,-500.0,0.00011502,2]
[347679059,1736051269413,-500.0,0.00011502,2]
[347679060,1736051269439,-988.39,0.00011502,2]
[347679061,1736051269463,-500.0,0.00011502,2]
[347679062,1736051269489,-500.0,0.00011502,2]
[347679063,1736051269513,-1172.45,0.00011502,2]
[347679064,1736051269538,-500.0,0.00011502,2]
[347679065,1736051269563,-500.0,0.00011502,2]
[347679066,1736051269588,-500.0,0.00011502,2]
[347679067,1736051269612,-890.96,0.00011502,2]
[347679068,1736051269637,-500.0,0.00011502,2]
[347679069,1736051269661,-917.41,0.00011502,2]
[347679070,1736051269686,-552.04,0.00011502,2]
[347679071,1736051269709,-1563.18,0.00011502,2]
[347679072,1736051269732,-250.72781597,0.00011503,2]
[347679073,1736051269755,-392.94,0.00011503,2]
[347679074,1736051269779,-1836.54,0.00011503,2]
[347679075,1736051269803,-500.0,0.00011503,2]
[347679076,1736051269826,-506.89,0.00011503,2]
[347679077,1736051269853,-1292.16,0.00011503,2]
[347679078,1736051269878,-500.0,0.00011503,2]
[347679079,1736051269901,-500.0,0.00011503,2]
[347679080,1736051269927,-500.0,0.00011503,2]
[347679081,1736051269951,-500.0,0.00011503,2]
[347679082,1736051269975,-500.0,0.00011503,2]
[347679083,1736051269999,-567.18,0.00011503,2]
[347679084,1736051270023,-328.55124357,0.00011503,2]
[347679085,1736051270049,-500.0,0.00011503,2]
[347679086,1736051270073,-500.0,0.00011503,2]
[347679087,1736051270102,-533.84,0.00011503,2]
[347679088,1736051270126,-742.63,0.00011503,2]
[347679089,1736051270149,-500.0,0.00011503,2]
[347679090,1736051270173,-500.0,0.00011503,2]
[347679091,1736051270200,-869.58,0.00011503,2]
[347679092,1736051270223,-500.0,0.00011503,2]
[347679093,1736051270248,-500.0,0.00011503,2]
[347679094,1736051270272,-500.0,0.00011503,2]
[347679095,1736051270296,-1069.16,0.00011503,2]
[347679096,1736051270320,-500.0,0.00011503,2]
[347679097,1736051270345,-742.45,0.00011503,2]
[347679098,1736051270371,-607.13,0.00011503,2]
[347679099,1736051270394,-500.0,0.00011503,2]
[347679100,1736051270416,-503.803,0.00011557,2]
[347679101,1736051270440,-1000.0,0.00011569,2]
[347679102,1736051270462,-500.0,0.00011678,2]
[347679103,1736051270484,-481.93252864,0.00011678,2]
[347679104,1736051270508,-500.0,0.00011678,2]
[347679105,1736051270531,-500.0,0.00011775,2]
[347679106,1736051270557,-1820.58,0.00011775,2]
[347679107,1736051270583,-562.23,0.00011775,2]
[347679108,1736051270607,-2054.34,0.00011775,2]
[347679109,1736051270631,-1370.28,0.00011775,2]
[347679110,1736051270662,-500.0,0.00011775,2]
[347679111,1736051270694,-1120.71,0.00011775,2]
[347679112,1736051270725,-500.0,0.00011775,2]
[347679113,1736051270749,-606.96,0.00011775,2]
[347679114,1736051270985,-1347.54,0.00011775,2]
[347679115,1736051271013,-500.0,0.00011775,2]
[347679116,1736051271036,-754.61,0.00011775,2]
[347679117,1736051271060,-500.0,0.00011775,2]
[347679118,1736051271083,-528.74,0.00011775,2]
[347679119,1736051271106,-1238.95,0.00011775,2]
[347679120,1736051271128,-547.29,0.00011775,2]
[347679121,1736051271156,-500.0,0.00011776,2]
[347679122,1736051271182,-229.36,0.00011776,2]
[347679123,1736051271207,-500.0,0.00011776,2]
[347679124,1736051271235,-500.0,0.00011776,2]
[347679125,1736051271261,-628.21890799,0.00011776,2]
[347679126,1736051271286,-507.63272453,0.00011776,2]
[347679127,1736051271313,-500.0,0.00011776,2]
[347679128,1736051271340,-841.26,0.00011776,2]
[347679129,1736051271365,-841.26,0.00011776,2]
[347679130,1736051271391,-1153.38,0.00011776,2]
[347679131,1736051271417,-520.24,0.00011776,2]
[347679132,1736051271445,-760.0,0.00011776,2]
[347679133,1736051271471,-500.0,0.00011776,2]
[347679134,1736051271496,-788.82,0.00011776,2]
[347679135,1736051271520,-500.0,0.00011776,2]
[347679136,1736051271546,-500.0,0.00011776,2]
[347679137,1736051271571,-500.0,0.00011776,2]
[347679138,1736051271596,-500.0,0.00011776,2]
[347679139,1736051271620,-1540.896891,0.00011776,2]
[347679140,1736051271644,-1540.896891,0.00011776,2]
[347679141,1736051271667,-156.453335,0.00011776,2]
[347679142,1736051271694,-500.0,0.00011776,2]
[347679143,1736051271718,-156.453335,0.00011776,2]
[347679144,1736051271743,-500.0,0.00011776,2]
[347679145,1736051271766,-156.573944,0.00011776,2]
[347679146,1736051271791,-500.0,0.00011776,2]
[347679147,1736051271822,-500.0,0.00011776,2]
[347679148,1736051271848,-437.83,0.00011776,2]
[347679149,1736051271873,-500.0,0.00011776,2]
[347679150,1736051271899,-1863.827328,0.00011776,2]
[347679151,1736051271926,-1863.827328,0.00011776,2]
[347679152,1736051271953,-1500.71,0.00011776,2]
[347679153,1736051271980,-500.0,0.00011776,2]
[347679154,1736051272006,-500.0,0.00011776,2]
[347679155,1736051272031,-500.0,0.00011776,2]
[347679156,1736051272056,-500.0,0.00011776,2]
[347679157,1736051272080,-500.0,0.00011776,2]
[347679158,1736051272107,-500.0,0.00011776,2]
[347679159,1736051272132,-520.90503508,0.00011776,2]
[347679160,1736051272157,-500.0,0.00011776,2]
[347679161,1736051272182,-363.93,0.00011776,2]
[347679162,1736051272207,-2093.2,0.00011776,2]
[347679163,1736051272234,-500.0,0.00011776,2]
[347679164,1736051272260,-500.0,0.00011776,2]
[347679165,1736051272287,-500.0,0.00011776,2]
[347679166,1736051272311,-1060.83,0.00011776,2]
[347679168,1736051272336,-500.0,0.00011776,2]
[347679170,1736051272361,-1546.57,0.00011776,2]
[347679171,1736051272387,-922.36,0.00011776,2]
[347679172,1736051272414,-500.0,0.00011776,2]
[347679173,1736051272440,-5149.62,0.00011776,2]
[347679174,1736051272466,-500.0,0.00011776,2]
[347679175,1736051272490,-500.0,0.00011776,2]
[347679176,1736051272515,-708.54,0.00011776,2]
[347679177,1736051272539,-500.0,0.00011776,2]
[347679178,1736051272564,-500.0,0.00011776,2]
[347679179,1736051272588,-500.0,0.00011776,2]
[347679180,1736051272611,-500.0,0.00011776,2]
[347679181,1736051272634,-500.0,0.00011776,2]
[347679182,1736051272658,-568.64797235,0.00011776,2]
[347679183,1736051272681,-500.0,0.00011776,2]
[347679184,1736051272706,-500.0,0.00011776,2]
[347679185,1736051272730,-500.0,0.00011776,2]
[347679186,1736051272755,-500.0,0.00011776,2]
[347679187,1736051272779,-600.84,0.00011776,2]
[347679188,1736051272806,-1567.43,0.00011776,2]
[347679189,1736051272831,-500.0,0.00011776,2]
[347679190,1736051272853,-500.0,0.00011776,2]
[347679191,1736051272877,-423.43923111,0.00011776,2]
[347679192,1736051272901,-1272.72,0.00011776,2]
[347679193,1736051272925,-500.0,0.00011776,2]
[347679194,1736051272950,-500.0,0.00011776,2]
[347679195,1736051272973,-988.39,0.00011776,2]
[347679196,1736051272996,-500.0,0.00011776,2]
[347679197,1736051273022,-500.0,0.00011776,2]
[347679198,1736051273045,-1172.45,0.00011776,2]
[347679199,1736051273074,-500.0,0.00011776,2]
[347679200,1736051273097,-500.0,0.00011776,2]
[347679201,1736051273121,-500.0,0.00011776,2]
[347679202,1736051273144,-890.96,0.00011776,2]
[347679203,1736051273167,-500.0,0.00011776,2]
[347679204,1736051273190,-917.41,0.00011776,2]
[347679205,1736051273214,-552.04,0.00011776,2]
[347679206,1736051273239,-1563.18,0.00011776,2]
[347679207,1736051273263,-1836.54,0.00011777,2]
[347679208,1736051273288,-500.0,0.00011777,2]
[347679209,1736051273313,-506.89,0.00011777,2]
[347679210,1736051273336,-1292.16,0.00011777,2]
[347679211,1736051273359,-500.0,0.00011777,2]
[347679212,1736051273381,-500.0,0.00011777,2]
[347679213,1736051273404,-500.0,0.00011777,2]
[347679214,1736051273428,-242.30799603,0.00011777,2]
[347679215,1736051273451,-500.0,0.00011777,2]
[347679216,1736051273474,-567.18,0.00011777,2]
[347679217,1736051273497,-500.0,0.00011777,2]
[347679218,1736051273523,-500.0,0.00011777,2]
[347679219,1736051273547,-533.84,0.00011777,2]
[347679220,1736051273573,-742.63,0.00011777,2]
[347679221,1736051273597,-500.0,0.00011777,2]
[347679222,1736051273622,-500.0,0.00011777,2]
[347679223,1736051273647,-869.58,0.00011777,2]
[347679224,1736051273672,-500.0,0.00011777,2]
[347679225,1736051273696,-500.0,0.00011777,2]
[347679226,1736051273720,-500.0,0.00011777,2]
[347679227,1736051273745,-1069.16,0.00011777,2]
[347679228,1736051273769,-500.0,0.00011777,2]
[347679229,1736051273793,-742.45,0.00011777,2]
[347679230,1736051273821,-607.13,0.00011777,2]
[347679231,1736051273993,-500.0,0.00011777,2]
[347679232,1736051274017,-1057.0,0.00011789,2]
[347679233,1736051274041,-1937.0,0.000119,2]
[347679234,1736051274065,-899.34714074,0.0001195,2]
[347679235,1736051274088,-918.284,0.00011966,2]
[347679236,1736051274110,-9629.80741616,0.0001199,2]
[347679237,1736051274132,-699116.26379564,0.00011999,2]
[347679238,1736051274154,-1055.88333849,0.00011999,2]
[347679239,1736051274176,-200.0,0.00011999,2]
[347679240,1736051274199,-3000.0,0.00011999,2]
[347679241,1736051274221,-2001.69617685,0.00012,2]
[347679242,1736051274247,-2449.86,0.00012,2]
[347679243,1736051274269,-1933.48254339,0.0001204,2]
[347679244,1736051274292,-1933.48254339,0.0001204,2]
[347679245,1736051274316,-500.0,0.00012048,2]
[347679246,1736051274340,-493.864676,0.00012049,2]
[347679247,1736051274362,-493.864676,0.00012049,2]
[347679248,1736051274385,-151.0,0.00012049,2]
[347679249,1736051274408,-9806.81,0.00012049,2]
[347679250,1736051274431,-500.0,0.00012049,2]
[347679251,1736051274453,-500.0,0.00012049,2]
[347679252,1736051274475,-500.0,0.00012049,2]
[347679253,1736051274497,-500.0,0.00012049,2]
[347679254,1736051274522,-500.0,0.00012049,2]
[347679255,1736051274544,-500.0,0.00012049,2]
[347679256,1736051274567,-500.0,0.00012049,2]
[347679257,1736051274590,-500.0,0.00012049,2]
[347679258,1736051274613,-500.0,0.00012049,2]
[347679259,1736051274635,-500.72047729,0.00012049,2]
[347679260,1736051274657,-500.0,0.00012049,2]
[347679261,1736051274680,-500.0,0.00012049,2]
[347679262,1736051274702,-500.0,0.00012049,2]
[347679263,1736051274726,-500.0,0.00012049,2]
[347679264,1736051274748,-193.61690158,0.00012049,2]
[347679265,1736051274771,-500.0,0.00012049,2]
[347679266,1736051274794,-500.0,0.00012049,2]
[347679267,1736051274816,-500.0,0.00012049,2]
[347679268,1736051274839,-500.0,0.00012049,2]
[347679269,1736051274862,-500.0,0.00012049,2]
[347679270,1736051274885,-500.0,0.00012049,2]
[347679271,1736051274908,-500.0,0.00012049,2]
[347679272,1736051274931,-500.0,0.00012049,2]
[347679273,1736051274954,-500.0,0.00012049,2]
[347679274,1736051274977,-500.0,0.00012049,2]
[347679275,1736051274999,-500.0,0.00012049,2]
[347679276,1736051275022,-500.0,0.00012049,2]
[347679277,1736051275046,-420.22812554,0.00012049,2]
[347679278,1736051275070,-500.0,0.00012049,2]
[347679279,1736051275092,-614.17583911,0.00012049,2]
[347679280,1736051275114,-500.0,0.00012049,2]
[347679281,1736051275136,-500.0,0.00012049,2]
[347679282,1736051275158,-500.0,0.00012049,2]
[347679283,1736051275180,-500.0,0.00012049,2]
[347679284,1736051275202,-500.0,0.00012049,2]
[347679285,1736051275225,-500.0,0.00012049,2]
[347679286,1736051275249,-500.0,0.00012049,2]
[347679287,1736051275272,-500.0,0.00012049,2]
[347679288,1736051275294,-500.0,0.00012049,2]
[347679289,1736051275320,-500.0,0.00012049,2]